Workbook

Sheet CT Data
B1: Version 1.2; Author: Guy Schott, guy.schott@waterboards.ca.gov, 707-576-2732
B2: CT Compliance for
B3: Viruses and Giardia Lamblia Cysts by Free Chlorine
B5: Input Parameters:
B6: Water System Name: | H6: Enter Name
B7: Number of Service Connections: | H7: Enter Number
B8: System Number: | H8: Enter Number
B9: Month and Year: | H9: 2018-02-01
B10: Clearwell(s) - Volume per Foot: | H10: 0 | I10: Gallons/Ft
B11: Short-Circuiting Factor for Clearwell(s): | H11: 0.1 | I11: t10/T
B12: Transmission Pipe - Volume | H12: 50000 | I12: Gallons
B13: Short-Circuiting Factor for Transmission Pipe: | H13: 0.9 | I13: t10/T
C15: Data inputs should be based on when plant is on-line | K15: Inactivation Results | AP15: =DATE(AP16,AQ16,AQ15) -> 2018-02-01 | AQ15: 1
C16: Transmission Data for Peak Hourly Flow (for pH = 6.0-9.0) | K16: Viruses | L16: Giardia | AP16: =YEAR(H9) -> 2018 | AQ16: =MONTH($H$9) -> 2
B17: Date | C17: Flow Rate, gpm | D17: Clearwell Lowest Level, ft | E17: Temp, oC | F17: Chlorine Residual, mg/L | G17: pH (Giardia) | H17: Pipeline Effective Volume, gal | I17: Effective Contact Time, minutes | J17: Ct10 mg/L∙min | K17: Log Inactivation | L17: Log Inactivation | AD17: Virus | AL17: Required CT
B18: =AP18&"-"&AQ18 -> Thu-1 | C18: 3000 | E18: 10 | F18: 1 | G18: 8 | H18: =IF(C18<=0,"-",$H$10*D18*$H$11+$H$12*$H$13) -> 45000 | I18: =IF(C18<=0,"-",H18/(C18)) -> 15 | J18: =IF(OR($C18=0,$F18<=0),"-",I18*F18) -> 15 | K18: =IF(OR(C18<=0,E18<=0,F18<=0),"-",IF(AD18>=8,">8.0",AD18)) -> >8.0 | L18: =IF(OR(AL18="-",J18="-"),"-",IF(J18/AL18*1>4,">4.0",J18/AL18*1)) -> 0.2777777778 | AD18: =IFERROR(IF(E18<=5,4*J18/(-0.9*E18+12.5),IF(E18<=15,4*J18/(-0.4*E18+10),4*J18/(-0.2*E18+7))),"-") -> 10 | AL18: =IF(OR(C18=0,C18="-",J18<=0,G18<5),"-",ROUNDUP(ct(E18,G18,F18)*1,0)) -> 54 | AM18: =IF(OR(AL18="-",J18="-"),"-",J18/AL18*1) -> 0.2777777778 | AP18: =IF(ISBLANK($AP$15),"",TEXT(AP15,"ddd")) -> Thu | AQ18: 1
B19: Fri-2 | C19: 2000 | E19: 15 | F19: 0.2 | G19: 6 | H19: =IF(C19<=0,"-",$H$10*D19*$H$11+$H$12*$H$13) -> 45000 | I19: =IF(C19<=0,"-",H19/(C19)) -> 22.5 | J19: =IF(OR($C19=0,$F19<=0),"-",I19*F19) -> 4.5 | K19: =IF(OR(C19<=0,E19<=0,F19<=0),"-",IF(AD19>=8,">8.0",AD19)) -> 4.5 | L19: =IF(OR(AL19="-",J19="-"),"-",IF(J19/AL19*1>4,">4.0",J19/AL19*1)) -> 0.28125 | AD19: =IFERROR(IF(E19<=5,4*J19/(-0.9*E19+12.5),IF(E19<=15,4*J19/(-0.4*E19+10),4*J19/(-0.2*E19+7))),"-") -> 4.5 | AL19: =IF(OR(C19=0,C19="-",J19<=0,G19<5),"-",ROUNDUP(ct(E19,G19,F19)*1,0)) -> 16 | AM19: =IF(OR(AL19="-",J19="-"),"-",J19/AL19*1) -> 0.28125 | AP19: =IF(ISBLANK($AP$15),"",TEXT($AP$15+AQ18,"ddd")) -> Fri | AQ19: 2
B20: Sat-3 | H20: =IF(C20<=0,"-",$H$10*D20*$H$11+$H$12*$H$13) -> - | I20: - | J20: - | K20: - | L20: - | AD20: =IFERROR(IF(E20<=5,4*J20/(-0.9*E20+12.5),IF(E20<=15,4*J20/(-0.4*E20+10),4*J20/(-0.2*E20+7))),"-") -> - | AL20: =IF(OR(C20=0,C20="-",J20<=0,G20<5),"-",ROUNDUP(ct(E20,G20,F20)*1,0)) -> - | AM20: =IF(OR(AL20="-",J20="-"),"-",J20/AL20*1) -> - | AP20: =IF(ISBLANK($AP$15),"",TEXT($AP$15+AQ19,"ddd")) -> Sat | AQ20: =AQ19+1 -> 3
B21: Sun-4 | H21: =IF(C21<=0,"-",$H$10*D21*$H$11+$H$12*$H$13) -> - | I21: - | J21: - | K21: - | L21: - | AD21: =IFERROR(IF(E21<=5,4*J21/(-0.9*E21+12.5),IF(E21<=15,4*J21/(-0.4*E21+10),4*J21/(-0.2*E21+7))),"-") -> - | AL21: =IF(OR(C21=0,C21="-",J21<=0,G21<5),"-",ROUNDUP(ct(E21,G21,F21)*1,0)) -> - | AM21: - | AP21: Sun | AQ21: =AQ20+1 -> 4
B22: Mon-5 | H22: =IF(C22<=0,"-",$H$10*D22*$H$11+$H$12*$H$13) -> - | I22: - | J22: - | K22: - | L22: - | AD22: - | AL22: =IF(OR(C22=0,C22="-",J22<=0,G22<5),"-",ROUNDUP(ct(E22,G22,F22)*1,0)) -> - | AM22: - | AP22: Mon | AQ22: 5
B23: Tue-6 | H23: =IF(C23<=0,"-",$H$10*D23*$H$11+$H$12*$H$13) -> - | I23: - | J23: - | K23: - | L23: - | AD23: - | AL23: =IF(OR(C23=0,C23="-",J23<=0,G23<5),"-",ROUNDUP(ct(E23,G23,F23)*1,0)) -> - | AM23: - | AP23: Tue | AQ23: 6
B24: Wed-7 | H24: =IF(C24<=0,"-",$H$10*D24*$H$11+$H$12*$H$13) -> - | I24: - | J24: - | K24: - | L24: - | AD24: - | AL24: =IF(OR(C24=0,C24="-",J24<=0,G24<5),"-",ROUNDUP(ct(E24,G24,F24)*1,0)) -> - | AM24: - | AP24: Wed | AQ24: 7
B25: Thu-8 | H25: =IF(C25<=0,"-",$H$10*D25*$H$11+$H$12*$H$13) -> - | I25: - | J25: - | K25: - | L25: - | AD25: - | AL25: =IF(OR(C25=0,C25="-",J25<=0,G25<5),"-",ROUNDUP(ct(E25,G25,F25)*1,0)) -> - | AM25: - | AP25: Thu | AQ25: 8
B26: Fri-9 | H26: =IF(C26<=0,"-",$H$10*D26*$H$11+$H$12*$H$13) -> - | I26: - | J26: - | K26: - | L26: - | AD26: - | AL26: =IF(OR(C26=0,C26="-",J26<=0,G26<5),"-",ROUNDUP(ct(E26,G26,F26)*1,0)) -> - | AM26: - | AP26: Fri | AQ26: 9
B27: Sat-10 | H27: =IF(C27<=0,"-",$H$10*D27*$H$11+$H$12*$H$13) -> - | I27: - | J27: - | K27: - | L27: - | AD27: - | AL27: =IF(OR(C27=0,C27="-",J27<=0,G27<5),"-",ROUNDUP(ct(E27,G27,F27)*1,0)) -> - | AM27: - | AP27: Sat | AQ27: 10
B28: Sun-11 | H28: =IF(C28<=0,"-",$H$10*D28*$H$11+$H$12*$H$13) -> - | I28: - | J28: - | K28: - | L28: - | AD28: - | AL28: =IF(OR(C28=0,C28="-",J28<=0,G28<5),"-",ROUNDUP(ct(E28,G28,F28)*1,0)) -> - | AM28: - | AP28: Sun | AQ28: 11
B29: Mon-12 | H29: =IF(C29<=0,"-",$H$10*D29*$H$11+$H$12*$H$13) -> - | I29: - | J29: - | K29: - | L29: - | AD29: - | AL29: =IF(OR(C29=0,C29="-",J29<=0,G29<5),"-",ROUNDUP(ct(E29,G29,F29)*1,0)) -> - | AM29: - | AP29: Mon | AQ29: 12
B30: Tue-13 | H30: =IF(C30<=0,"-",$H$10*D30*$H$11+$H$12*$H$13) -> - | I30: - | J30: - | K30: - | L30: - | AD30: - | AL30: =IF(OR(C30=0,C30="-",J30<=0,G30<5),"-",ROUNDUP(ct(E30,G30,F30)*1,0)) -> - | AM30: - | AP30: Tue | AQ30: 13
B31: Wed-14 | H31: =IF(C31<=0,"-",$H$10*D31*$H$11+$H$12*$H$13) -> - | I31: - | J31: - | K31: - | L31: - | AD31: - | AL31: =IF(OR(C31=0,C31="-",J31<=0,G31<5),"-",ROUNDUP(ct(E31,G31,F31)*1,0)) -> - | AM31: - | AP31: Wed | AQ31: 14
B32: Thu-15 | H32: =IF(C32<=0,"-",$H$10*D32*$H$11+$H$12*$H$13) -> - | I32: - | J32: - | K32: - | L32: - | AD32: - | AL32: =IF(OR(C32=0,C32="-",J32<=0,G32<5),"-",ROUNDUP(ct(E32,G32,F32)*1,0)) -> - | AM32: - | AP32: Thu | AQ32: 15
B33: Fri-16 | H33: =IF(C33<=0,"-",$H$10*D33*$H$11+$H$12*$H$13) -> - | I33: - | J33: - | K33: - | L33: - | AD33: - | AL33: =IF(OR(C33=0,C33="-",J33<=0,G33<5),"-",ROUNDUP(ct(E33,G33,F33)*1,0)) -> - | AM33: - | AP33: Fri | AQ33: 16
B34: Sat-17 | H34: =IF(C34<=0,"-",$H$10*D34*$H$11+$H$12*$H$13) -> - | I34: - | J34: - | K34: - | L34: - | AD34: - | AL34: =IF(OR(C34=0,C34="-",J34<=0,G34<5),"-",ROUNDUP(ct(E34,G34,F34)*1,0)) -> - | AM34: - | AP34: Sat | AQ34: 17
B35: Sun-18 | H35: =IF(C35<=0,"-",$H$10*D35*$H$11+$H$12*$H$13) -> - | I35: - | J35: - | K35: - | L35: - | AD35: - | AL35: =IF(OR(C35=0,C35="-",J35<=0,G35<5),"-",ROUNDUP(ct(E35,G35,F35)*1,0)) -> - | AM35: - | AP35: Sun | AQ35: 18
B36: Mon-19 | H36: =IF(C36<=0,"-",$H$10*D36*$H$11+$H$12*$H$13) -> - | I36: - | J36: - | K36: - | L36: - | AD36: - | AL36: =IF(OR(C36=0,C36="-",J36<=0,G36<5),"-",ROUNDUP(ct(E36,G36,F36)*1,0)) -> - | AM36: - | AP36: Mon | AQ36: 19
B37: Tue-20 | H37: =IF(C37<=0,"-",$H$10*D37*$H$11+$H$12*$H$13) -> - | I37: - | J37: - | K37: - | L37: - | AD37: - | AL37: =IF(OR(C37=0,C37="-",J37<=0,G37<5),"-",ROUNDUP(ct(E37,G37,F37)*1,0)) -> - | AM37: - | AP37: Tue | AQ37: 20
B38: Wed-21 | H38: =IF(C38<=0,"-",$H$10*D38*$H$11+$H$12*$H$13) -> - | I38: - | J38: - | K38: - | L38: - | AD38: - | AL38: =IF(OR(C38=0,C38="-",J38<=0,G38<5),"-",ROUNDUP(ct(E38,G38,F38)*1,0)) -> - | AM38: - | AP38: Wed | AQ38: 21
B39: Thu-22 | H39: =IF(C39<=0,"-",$H$10*D39*$H$11+$H$12*$H$13) -> - | I39: - | J39: - | K39: - | L39: - | AD39: - | AL39: =IF(OR(C39=0,C39="-",J39<=0,G39<5),"-",ROUNDUP(ct(E39,G39,F39)*1,0)) -> - | AM39: - | AP39: Thu | AQ39: 22
B40: Fri-23 | H40: =IF(C40<=0,"-",$H$10*D40*$H$11+$H$12*$H$13) -> - | I40: - | J40: - | K40: - | L40: - | AD40: - | AL40: =IF(OR(C40=0,C40="-",J40<=0,G40<5),"-",ROUNDUP(ct(E40,G40,F40)*1,0)) -> - | AM40: - | AP40: Fri | AQ40: 23
B41: Sat-24 | H41: =IF(C41<=0,"-",$H$10*D41*$H$11+$H$12*$H$13) -> - | I41: - | J41: - | K41: - | L41: - | AD41: - | AL41: =IF(OR(C41=0,C41="-",J41<=0,G41<5),"-",ROUNDUP(ct(E41,G41,F41)*1,0)) -> - | AM41: - | AP41: Sat | AQ41: 24
B42: Sun-25 | H42: =IF(C42<=0,"-",$H$10*D42*$H$11+$H$12*$H$13) -> - | I42: - | J42: - | K42: - | L42: - | AD42: - | AL42: =IF(OR(C42=0,C42="-",J42<=0,G42<5),"-",ROUNDUP(ct(E42,G42,F42)*1,0)) -> - | AM42: - | AP42: Sun | AQ42: 25
B43: Mon-26 | H43: =IF(C43<=0,"-",$H$10*D43*$H$11+$H$12*$H$13) -> - | I43: - | J43: - | K43: - | L43: - | AD43: - | AL43: =IF(OR(C43=0,C43="-",J43<=0,G43<5),"-",ROUNDUP(ct(E43,G43,F43)*1,0)) -> - | AM43: - | AP43: Mon | AQ43: 26
B44: Tue-27 | H44: =IF(C44<=0,"-",$H$10*D44*$H$11+$H$12*$H$13) -> - | I44: - | J44: - | K44: - | L44: - | AD44: - | AL44: =IF(OR(C44=0,C44="-",J44<=0,G44<5),"-",ROUNDUP(ct(E44,G44,F44)*1,0)) -> - | AM44: - | AP44: Tue | AQ44: 27
B45: Wed-28 | H45: =IF(C45<=0,"-",$H$10*D45*$H$11+$H$12*$H$13) -> - | I45: - | J45: - | K45: - | L45: - | AD45: - | AL45: =IF(OR(C45=0,C45="-",J45<=0,G45<5),"-",ROUNDUP(ct(E45,G45,F45)*1,0)) -> - | AM45: - | AP45: Wed | AQ45: 28
B46: Thu-29 | H46: =IF(C46<=0,"-",$H$10*D46*$H$11+$H$12*$H$13) -> - | I46: - | J46: - | K46: - | L46: - | AD46: - | AL46: =IF(OR(C46=0,C46="-",J46<=0,G46<5),"-",ROUNDUP(ct(E46,G46,F46)*1,0)) -> - | AM46: - | AP46: Thu | AQ46: 29
B47: Fri-30 | H47: =IF(C47<=0,"-",$H$10*D47*$H$11+$H$12*$H$13) -> - | I47: - | J47: - | K47: - | L47: - | AD47: - | AL47: =IF(OR(C47=0,C47="-",J47<=0,G47<5),"-",ROUNDUP(ct(E47,G47,F47)*1,0)) -> - | AM47: - | AP47: Fri | AQ47: 30
B48: Sat-31 | H48: =IF(C48<=0,"-",$H$10*D48*$H$11+$H$12*$H$13) -> - | I48: - | J48: - | K48: - | L48: - | AD48: - | AL48: =IF(OR(C48=0,C48="-",J48<=0,G48<5),"-",ROUNDUP(ct(E48,G48,F48)*1,0)) -> - | AM48: - | AP48: Sat | AQ48: 31
B49: Min | C49: =MIN(C18:C48) -> 2000 | D49: 0 | E49: =MIN(E18:E48) -> 10 | F49: =MIN(F18:F48) -> 0.2 | G49: =MIN(G18:G48) -> 6 | H49: =MIN(H18:H48) -> 45000 | I49: 15 | J49: 4.5 | K49: =IF(MIN(AD18:AD48)> 8, ">8.0",MIN(AD18:AD48)) -> 4.5 | L49: =IF(MIN(AM18:AM48)>4,">4.0",MIN(AM18:AM48)) -> 0.2777777778
B50: Median | C50: =IF(SUM(C18:C48)<=0,0,MEDIAN(C18:C48)) -> 2500 | D50: =IF(SUM(D18:D48)<=0,0,MEDIAN(D18:D48)) -> 0 | E50: =IF(SUM(E18:E48)<=0,0,MEDIAN(E18:E48)) -> 12.5 | F50: =IF(SUM(F18:F48)<=0,0,MEDIAN(F18:F48)) -> 0.6 | G50: =IF(SUM(G18:G48)<=0,0,MEDIAN(G18:G48)) -> 7 | H50: =IF(SUM(H18:H48)<=0,0,MEDIAN(H18:H48)) -> 45000 | I50: =IF(SUM(I18:I48)<=0,0,MEDIAN(I18:I48)) -> 18.75 | J50: 9.75 | K50: =IF(MEDIAN(AD18:AD48)> 8, ">8.0",MEDIAN(AD18:AD48)) -> 7.25 | L50: =IF(SUM(AM18:AM48)<=0,0,IF(MEDIAN(AM18:AM48)>4,">4.0",MEDIAN(AM18:AM48))) -> 0.2795138889
B51: Max | C51: =MAX(C18:C48) -> 3000 | D51: =MAX(D18:D48) -> 0 | E51: =MAX(E18:E48) -> 15 | F51: =MAX(F18:F48) -> 1 | G51: =MAX(G18:G48) -> 8 | H51: =MAX(H18:H48) -> 45000 | I51: =MAX(I18:I48) -> 22.5 | J51: 15 | K51: =IF(MAX(AD18:AD48)> 8, ">8.0",MAX(AD18:AD48)) -> >8.0 | L51: =IF(MAX(AM18:AM48)>4,">4.0",MAX(AM18:AM48)) -> 0.28125
B54: Print Name:
B55: Signature: | J55: Date:
